[Event "*** Titled Tuesday Blitz"]
[Site "Chess.com"]
[Date "2018.11.06"]
[Round "9"]
[White "nubair1198"]
[Black "OparinGrigoriy"]
[Result "0-1"]
[WhiteElo "2591"]
[BlackElo "2927"]
[TimeControl "180+2"]
[EndTime "15:08:21 PST"]
[Termination "OparinGrigoriy won by resignation"]

1. d4 {[%clk 0:03:01.9]} 1... Nf6 {[%clk 0:03:00.5]} 2. c4 {[%clk 0:03:03.3]}
2... e6 {[%clk 0:03:01.9]} 3. Nc3 {[%clk 0:03:04.9]} 3... Bb4 {[%clk 0:03:02.9]}
4. Qc2 {[%clk 0:03:06.5]} 4... d6 {[%clk 0:03:04]} 5. Bd2 {[%clk 0:03:06.5]}
5... Nbd7 {[%clk 0:03:02.7]} 6. Nf3 {[%clk 0:03:05.1]} 6... O-O {[%clk
0:03:02.6]} 7. a3 {[%clk 0:02:42.1]} 7... Bxc3 {[%clk 0:03:03.7]} 8. Bxc3 {[%clk
0:02:44]} 8... c5 {[%clk 0:03:04.9]} 9. dxc5 {[%clk 0:02:40.5]} 9... Nxc5 {[%clk
0:03:06.8]} 10. g3 {[%clk 0:02:41.4]} 10... e5 {[%clk 0:03:04.5]} 11. Bg2 {[%clk
0:02:27.2]} 11... Qe7 {[%clk 0:03:04.4]} 12. b4 {[%clk 0:02:20.4]} 12... Nce4
{[%clk 0:03:01.6]} 13. Bb2 {[%clk 0:02:21.8]} 13... Be6 {[%clk 0:02:57.4]} 14.
Nh4 {[%clk 0:01:49.9]} 14... Rac8 {[%clk 0:02:57.5]} 15. c5 {[%clk 0:01:44.4]}
15... Ng5 {[%clk 0:02:24.1]} 16. Nf5 {[%clk 0:01:28.4]} 16... Qd7 {[%clk
0:02:16]} 17. Nxd6 {[%clk 0:01:23.5]} 17... Qxd6 {[%clk 0:02:16.8]} 18. Qc1
{[%clk 0:01:25.2]} 18... Qc7 {[%clk 0:01:23.7]} 19. Qxg5 {[%clk 0:01:15.4]}
19... Nd7 {[%clk 0:01:24.7]} 20. O-O {[%clk 0:01:04.3]} 20... f6 {[%clk
0:01:25.1]} 21. Qe3 {[%clk 0:01:05.8]} 21... Rfd8 {[%clk 0:01:24.7]} 22. Rfd1
{[%clk 0:01:07]} 22... Nb8 {[%clk 0:01:25.6]} 23. h4 {[%clk 0:01:07.1]} 23...
Nc6 {[%clk 0:01:26]} 24. h5 {[%clk 0:01:08.3]} 24... h6 {[%clk 0:01:26.4]} 25.
Be4 {[%clk 0:01:08.6]} 25... Ne7 {[%clk 0:01:25.9]} 26. Qf3 {[%clk 0:01:08.6]}
26... b6 {[%clk 0:01:26.3]} 27. Rxd8+ {[%clk 0:01:04]} 27... Rxd8 {[%clk
0:01:27.1]} 28. Rc1 {[%clk 0:01:05.9]} 28... bxc5 {[%clk 0:01:20.7]} 29. Rxc5
{[%clk 0:01:07.8]} 29... Rd1+ {[%clk 0:01:19]} 30. Kg2 {[%clk 0:01:06.2]} 30...
Qd7 {[%clk 0:01:19.9]} 31. Bc2 {[%clk 0:00:53]} 31... Rd2 {[%clk 0:01:10.1]} 32.
Qa8+ {[%clk 0:00:54.3]} 32... Kf7 {[%clk 0:01:05.3]} 33. Qf3 {[%clk 0:00:34.9]}
33... Nf5 {[%clk 0:00:28.1]} 34. Bc1 {[%clk 0:00:27.2]} 34... Rxc2 {[%clk
0:00:29.3]} 35. Rxc2 {[%clk 0:00:25.8]} 35... Nd4 {[%clk 0:00:30.8]} 36. Qd3
{[%clk 0:00:26.5]} 36... Qb7+ {[%clk 0:00:18.4]} 37. Kg1 {[%clk 0:00:22.5]}
37... Nxc2 {[%clk 0:00:15.7]} 38. Qxc2 {[%clk 0:00:24.4]} 38... a6 {[%clk
0:00:16.3]} 39. f3 {[%clk 0:00:22.7]} 39... e4 {[%clk 0:00:16.9]} 40. Qxe4
{[%clk 0:00:21.5]} 40... Qb5 {[%clk 0:00:14.5]} 41. g4 {[%clk 0:00:20.8]} 41...
Bd5 {[%clk 0:00:14.2]} 42. Qg6+ {[%clk 0:00:20.2]} 42... Kf8 {[%clk 0:00:15.6]}
43. Kf2 {[%clk 0:00:21.3]} 43... Qc4 {[%clk 0:00:15.2]} 44. Qd3 {[%clk
0:00:21.6]} 44... Qxd3 {[%clk 0:00:13.3]} 45. exd3 {[%clk 0:00:22.8]} 45... Bc6
{[%clk 0:00:14.9]} 46. f4 {[%clk 0:00:22.9]} 46... Kf7 {[%clk 0:00:15.9]} 47.
Ke3 {[%clk 0:00:22.2]} 47... Bd7 {[%clk 0:00:16.9]} 48. Kf3 {[%clk 0:00:22.5]}
48... Bc6+ {[%clk 0:00:17.7]} 49. Kg3 {[%clk 0:00:22.9]} 49... Bb5 {[%clk
0:00:19.2]} 50. d4 {[%clk 0:00:23.4]} 50... Bc6 {[%clk 0:00:20.9]} 51. Kf2
{[%clk 0:00:23.7]} 51... Bd7 {[%clk 0:00:21.4]} 52. Kf3 {[%clk 0:00:24.7]} 52...
Bc6+ {[%clk 0:00:21.8]} 53. Ke3 {[%clk 0:00:26.1]} 53... Bd7 {[%clk 0:00:23.3]}
54. f5 {[%clk 0:00:27.4]} 54... Bc6 {[%clk 0:00:24.7]} 55. Kd3 {[%clk
0:00:28.8]} 55... Bf3 {[%clk 0:00:25.8]} 56. a4 {[%clk 0:00:29.3]} 56... Bxg4
{[%clk 0:00:26.8]} 57. b5 {[%clk 0:00:30.7]} 57... axb5 {[%clk 0:00:28.7]} 58.
axb5 {[%clk 0:00:32.5]} 58... Bxf5+ {[%clk 0:00:28.5]} 59. Kc4 {[%clk
0:00:33.9]} 59... Ke7 {[%clk 0:00:26.8]} 60. Kc5 {[%clk 0:00:34.1]} 60... Kd7
{[%clk 0:00:27.4]} 61. b6 {[%clk 0:00:35.7]} 61... Bg4 {[%clk 0:00:25.8]} 62. d5
{[%clk 0:00:36]} 62... Bxh5 {[%clk 0:00:26.1]} 63. Bf4 {[%clk 0:00:37.6]} 63...
Kc8 {[%clk 0:00:20.8]} 64. Kc6 {[%clk 0:00:32.8]} 64... Be8+ {[%clk 0:00:21.4]}
65. Kd6 {[%clk 0:00:34.4]} 65... g5 {[%clk 0:00:21]} 66. Ke7 {[%clk 0:00:21.4]}
66... Ba4 {[%clk 0:00:21.3]} 67. Be3 {[%clk 0:00:17.3]} 67... f5 {[%clk
0:00:21.9]} 68. Kf6 {[%clk 0:00:16.3]} 68... f4 {[%clk 0:00:23.3]} 69. Bf2
{[%clk 0:00:17.8]} 69... g4 {[%clk 0:00:24.2]} 70. Ke5 {[%clk 0:00:12.9]} 70...
g3 {[%clk 0:00:25.3]} 71. Bd4 {[%clk 0:00:12.6]} 71... f3 {[%clk 0:00:25.5]} 72.
Kf4 {[%clk 0:00:09.1]} 72... f2 {[%clk 0:00:26.7]} 73. b7+ {[%clk 0:00:10.6]}
73... Kxb7 {[%clk 0:00:27.3]} 74. Kxg3 {[%clk 0:00:12.5]} 0-1

[Event "*** Titled Tuesday Blitz"]
[Site "Chess.com"]
[Date "2018.11.06"]
[Round "9"]
[White "TST2014"]
[Black "Bryakin_Mikhail"]
[Result "0-1"]
[WhiteElo "2516"]
[BlackElo "2698"]
[TimeControl "180+2"]
[EndTime "15:08:47 PST"]
[Termination "Bryakin_Mikhail won on time"]

1. d4 {[%clk 0:03:00]} 1... d5 {[%clk 0:03:00.3]} 2. c4 {[%clk 0:03:00.2]} 2...
c6 {[%clk 0:03:01.6]} 3. Nf3 {[%clk 0:03:00.8]} 3... Nf6 {[%clk 0:03:01.9]} 4.
Qc2 {[%clk 0:03:00.7]} 4... a6 {[%clk 0:02:59.5]} 5. g3 {[%clk 0:02:58.7]} 5...
b5 {[%clk 0:02:56.6]} 6. c5 {[%clk 0:02:52.5]} 6... g6 {[%clk 0:02:54.6]} 7. Bg2
{[%clk 0:02:50.9]} 7... Bf5 {[%clk 0:02:53.8]} 8. Qb3 {[%clk 0:02:49.4]} 8...
Bxb1 {[%clk 0:02:50.5]} 9. Rxb1 {[%clk 0:02:49.1]} 9... Nbd7 {[%clk 0:02:51.3]}
10. a4 {[%clk 0:02:47.5]} 10... Bg7 {[%clk 0:02:50.1]} 11. Ra1 {[%clk
0:02:45.8]} 11... O-O {[%clk 0:02:49]} 12. O-O {[%clk 0:02:46.1]} 12... Ne4
{[%clk 0:02:36]} 13. Bf4 {[%clk 0:02:40.6]} 13... Re8 {[%clk 0:02:31.8]} 14. Qc2
{[%clk 0:02:22.2]} 14... e5 {[%clk 0:02:13.4]} 15. Nxe5 {[%clk 0:02:18.4]} 15...
Nxe5 {[%clk 0:02:13.2]} 16. Bxe4 {[%clk 0:02:15]} 16... Nc4 {[%clk 0:01:59.9]}
17. Bd3 {[%clk 0:01:56.9]} 17... Bxd4 {[%clk 0:02:00.6]} 18. axb5 {[%clk
0:01:56.5]} 18... axb5 {[%clk 0:01:57.6]} 19. Rxa8 {[%clk 0:01:55.8]} 19... Qxa8
{[%clk 0:01:59.5]} 20. b3 {[%clk 0:01:55.8]} 20... Ne5 {[%clk 0:01:50.7]} 21.
Bxe5 {[%clk 0:01:40.6]} 21... Bxe5 {[%clk 0:01:52.6]} 22. e3 {[%clk 0:01:35.3]}
22... Qa3 {[%clk 0:01:51.1]} 23. h4 {[%clk 0:01:31.8]} 23... b4 {[%clk
0:01:46.5]} 24. h5 {[%clk 0:01:27.4]} 24... Kg7 {[%clk 0:01:47.9]} 25. Kg2
{[%clk 0:01:26.5]} 25... Bc3 {[%clk 0:01:44]} 26. e4 {[%clk 0:01:14.5]} 26...
Qa5 {[%clk 0:01:15.3]} 27. exd5 {[%clk 0:01:12.9]} 27... Qxc5 {[%clk 0:01:16.8]}
28. dxc6 {[%clk 0:01:02]} 28... Qxc6+ {[%clk 0:01:18.7]} 29. Kg1 {[%clk
0:01:00.2]} 29... Qf3 {[%clk 0:01:12.1]} 30. Qd1 {[%clk 0:00:27.3]} 30... Qf6
{[%clk 0:01:03.1]} 31. Qg4 {[%clk 0:00:24.3]} 31... Re5 {[%clk 0:01:02]} 32.
hxg6 {[%clk 0:00:20.5]} 32... hxg6 {[%clk 0:01:03.9]} 33. Kg2 {[%clk 0:00:15.7]}
33... Rg5 {[%clk 0:01:04.1]} 34. Qh4 {[%clk 0:00:15.6]} 34... Bd4 {[%clk
0:00:53.2]} 35. f4 {[%clk 0:00:16]} 35... Qc6+ {[%clk 0:00:48.7]} 36. Rf3 {[%clk
0:00:16.9]} 36... Rh5 {[%clk 0:00:41.4]} 37. Qe7 {[%clk 0:00:15.1]} 37... Qc1
{[%clk 0:00:38.6]} 38. Rf1 {[%clk 0:00:10]} 38... Qb2+ {[%clk 0:00:39.6]} 39.
Qe2 {[%clk 0:00:10.7]} 39... Qxb3 {[%clk 0:00:39.3]} 40. Rb1 {[%clk 0:00:10.4]}
40... Qd5+ {[%clk 0:00:34]} 41. Qe4 {[%clk 0:00:10.4]} 41... Qd6 {[%clk
0:00:26.5]} 42. Kf3 {[%clk 0:00:07.4]} 42... Bc3 {[%clk 0:00:27]} 43. Rd1 {[%clk
0:00:06.3]} 43... Qd7 {[%clk 0:00:19.5]} 44. Bc2 {[%clk 0:00:05]} 44... Qh3
{[%clk 0:00:20.6]} 45. Qe2 {[%clk 0:00:04.7]} 45... Ra5 {[%clk 0:00:15.4]} 46.
Bb3 {[%clk 0:00:05.2]} 46... Qh5+ {[%clk 0:00:14.9]} 47. Kf2 {[%clk 0:00:05.7]}
47... Qh2+ {[%clk 0:00:16]} 48. Kf3 {[%clk 0:00:06.8]} 48... Qh5+ {[%clk
0:00:17.3]} 49. Kf2 {[%clk 0:00:07.9]} 49... Qc5+ {[%clk 0:00:18.9]} 50. Qe3
{[%clk 0:00:07.6]} 50... Qxe3+ {[%clk 0:00:18.9]} 51. Kxe3 {[%clk 0:00:08.4]}
51... Ra3 {[%clk 0:00:20.4]} 52. Rb1 {[%clk 0:00:09.2]} 52... Kf6 {[%clk
0:00:21.7]} 53. g4 {[%clk 0:00:09.8]} 53... Ra8 {[%clk 0:00:18.5]} 54. Kd3
{[%clk 0:00:08.5]} 54... Rd8+ {[%clk 0:00:18.4]} 55. Ke4 {[%clk 0:00:09.4]}
55... Rd4+ {[%clk 0:00:18.7]} 56. Ke3 {[%clk 0:00:10.1]} 56... Rd2 {[%clk
0:00:15.2]} 57. Rd1 {[%clk 0:00:10.5]} 57... Rb2 {[%clk 0:00:15.3]} 58. Bc4
{[%clk 0:00:09.2]} 58... Rg2 {[%clk 0:00:15]} 59. Rd7 {[%clk 0:00:09.7]} 59...
g5 {[%clk 0:00:07.7]} 60. Rxf7+ {[%clk 0:00:09.8]} 60... Kg6 {[%clk 0:00:09.1]}
61. f5+ {[%clk 0:00:11.1]} 61... Kh6 {[%clk 0:00:10.6]} 62. Be2 {[%clk 0:00:07]}
62... b3 {[%clk 0:00:06.3]} 63. Rb7 {[%clk 0:00:07.1]} 63... b2 {[%clk
0:00:07.4]} 64. Kd3 {[%clk 0:00:07]} 64... Bf6 {[%clk 0:00:07.4]} 65. Bf3 {[%clk
0:00:06.7]} 65... Rg3 {[%clk 0:00:07.4]} 66. Ke4 {[%clk 0:00:07.1]} 66... Rg1
{[%clk 0:00:08.6]} 67. Rb6 {[%clk 0:00:07.6]} 67... b1=Q+ {[%clk 0:00:07.9]} 68.
Rxb1 {[%clk 0:00:08.1]} 68... Rxb1 {[%clk 0:00:08.1]} 69. Kd5 {[%clk 0:00:08.8]}
69... Re1 {[%clk 0:00:08.9]} 70. Be4 {[%clk 0:00:08]} 70... Kg7 {[%clk
0:00:10.2]} 71. Bf3 {[%clk 0:00:04.1]} 71... Re5+ {[%clk 0:00:12.1]} 72. Kc4
{[%clk 0:00:03.7]} 72... Re3 {[%clk 0:00:12.7]} 73. Bd1 {[%clk 0:00:04.2]} 73...
Be5 {[%clk 0:00:13.8]} 74. Kd5 {[%clk 0:00:04.8]} 74... Kf6 {[%clk 0:00:15]} 75.
Kc4 {[%clk 0:00:05.2]} 75... Ba1 {[%clk 0:00:16.4]} 76. Kb4 {[%clk 0:00:03.1]}
76... Ke5 {[%clk 0:00:15.5]} 0-1

[Event "*** Titled Tuesday Blitz"]
[Site "Chess.com"]
[Date "2018.11.06"]
[Round "9"]
[White "enriquetejedor"]
[Black "RichardLeyvaP"]
[Result "0-1"]
[WhiteElo "2510"]
[BlackElo "2505"]
[TimeControl "180+2"]
[EndTime "15:11:11 PST"]
[Termination "RichardLeyvaP won by checkmate"]

1. d4 {[%clk 0:02:55.8]} 1... Nf6 {[%clk 0:03:00.5]} 2. c4 {[%clk 0:02:56.9]}
2... g6 {[%clk 0:03:01.7]} 3. h4 {[%clk 0:02:56.6]} 3... Bg7 {[%clk 0:02:53.1]}
4. h5 {[%clk 0:02:57.7]} 4... Nxh5 {[%clk 0:02:47.8]} 5. Rxh5 {[%clk 0:02:58.1]}
5... gxh5 {[%clk 0:02:48.9]} 6. e3 {[%clk 0:02:59]} 6... c5 {[%clk 0:02:37.6]}
7. dxc5 {[%clk 0:02:59.9]} 7... Na6 {[%clk 0:02:32]} 8. Qxh5 {[%clk 0:02:59.9]}
8... Qa5+ {[%clk 0:02:26.6]} 9. Nd2 {[%clk 0:03:00.1]} 9... Qxc5 {[%clk
0:02:27]} 10. Qg4 {[%clk 0:03:00.8]} 10... Rg8 {[%clk 0:01:48.7]} 11. Bd3 {[%clk
0:02:40.7]} 11... d6 {[%clk 0:01:44.2]} 12. Qe2 {[%clk 0:02:36.2]} 12... Be6
{[%clk 0:01:33.7]} 13. a3 {[%clk 0:02:35.2]} 13... Qg5 {[%clk 0:01:23.9]} 14. g3
{[%clk 0:02:10.8]} 14... Nc5 {[%clk 0:01:24]} 15. Bc2 {[%clk 0:02:09.6]} 15...
Bg4 {[%clk 0:01:21.5]} 16. Qf1 {[%clk 0:01:55.1]} 16... Qh5 {[%clk 0:01:15.3]}
17. Ra2 {[%clk 0:01:41.6]} 17... O-O-O {[%clk 0:01:07.2]} 18. b4 {[%clk
0:01:42.4]} 18... Ne6 {[%clk 0:01:03.4]} 19. Be4 {[%clk 0:01:44]} 19... Ng5
{[%clk 0:00:55.4]} 20. Bg2 {[%clk 0:01:42]} 20... Kb8 {[%clk 0:00:49.3]} 21. f3
{[%clk 0:01:29.5]} 21... Bc8 {[%clk 0:00:48.3]} 22. Ne2 {[%clk 0:01:25.4]} 22...
Ne6 {[%clk 0:00:36.3]} 23. Kf2 {[%clk 0:01:18.7]} 23... Qg6 {[%clk 0:00:35.7]}
24. Bb2 {[%clk 0:01:11.7]} 24... h5 {[%clk 0:00:35.5]} 25. Qb1 {[%clk
0:01:00.7]} 25... f5 {[%clk 0:00:35.9]} 26. Bxg7 {[%clk 0:00:56.3]} 26... Rxg7
{[%clk 0:00:36.6]} 27. Qh1 {[%clk 0:00:57.9]} 27... h4 {[%clk 0:00:35.3]} 28.
Qxh4 {[%clk 0:00:57.8]} 28... Rh7 {[%clk 0:00:35.9]} 29. Nf4 {[%clk 0:00:55.8]}
29... Qf7 {[%clk 0:00:31.4]} 30. Nxe6 {[%clk 0:00:53]} 30... Rxh4 {[%clk
0:00:27.2]} 31. Nxd8 {[%clk 0:00:54.1]} 31... Qf6 {[%clk 0:00:27.4]} 32. gxh4
{[%clk 0:00:53.7]} 32... Qxh4+ {[%clk 0:00:28.5]} 33. Ke2 {[%clk 0:00:51.7]}
33... Qg3 {[%clk 0:00:27.2]} 34. Bf1 {[%clk 0:00:44.9]} 34... Qg8 {[%clk
0:00:26.9]} 35. Nxb7 {[%clk 0:00:38.3]} 35... Bxb7 {[%clk 0:00:26.5]} 36. Kd3
{[%clk 0:00:40]} 36... e5 {[%clk 0:00:27]} 37. Rc2 {[%clk 0:00:37.2]} 37... Qg1
{[%clk 0:00:25.2]} 38. Ke2 {[%clk 0:00:31.3]} 38... f4 {[%clk 0:00:22.9]} 39.
exf4 {[%clk 0:00:30.8]} 39... exf4 {[%clk 0:00:24.8]} 40. Rc3 {[%clk 0:00:30.9]}
40... Qh2+ {[%clk 0:00:16.5]} 41. Kd1 {[%clk 0:00:31.9]} 41... Qf2 {[%clk
0:00:17.7]} 42. Be2 {[%clk 0:00:31.1]} 42... Kc7 {[%clk 0:00:17.8]} 43. Rd3
{[%clk 0:00:24.8]} 43... Bc6 {[%clk 0:00:17.4]} 44. b5 {[%clk 0:00:24.7]} 44...
Bb7 {[%clk 0:00:17.5]} 45. Nb3 {[%clk 0:00:24.7]} 45... Qg1+ {[%clk 0:00:15.9]}
46. Kd2 {[%clk 0:00:22.2]} 46... Qb1 {[%clk 0:00:16.8]} 47. Nd4 {[%clk
0:00:21.8]} 47... Qb2+ {[%clk 0:00:14.7]} 48. Kd1 {[%clk 0:00:22.8]} 48... Qb1+
{[%clk 0:00:15.6]} 49. Kd2 {[%clk 0:00:24.1]} 49... Qb2+ {[%clk 0:00:16.9]} 50.
Ke1 {[%clk 0:00:25.4]} 50... Qc1+ {[%clk 0:00:16.8]} 51. Kf2 {[%clk 0:00:26.6]}
51... Qh1 {[%clk 0:00:17.2]} 52. Ne6+ {[%clk 0:00:27.3]} 52... Kd7 {[%clk
0:00:16.2]} 53. Nxf4 {[%clk 0:00:15.1]} 53... Qh2+ {[%clk 0:00:17.1]} 54. Ke3
{[%clk 0:00:14.1]} 54... Qg1+ {[%clk 0:00:15.9]} 55. Kd2 {[%clk 0:00:15.6]}
55... Qg5 {[%clk 0:00:16.6]} 56. Rd4 {[%clk 0:00:16.8]} 56... Kc7 {[%clk
0:00:17.6]} 57. Kc2 {[%clk 0:00:09]} 57... Qe5 {[%clk 0:00:18.5]} 58. Bd3 {[%clk
0:00:10.2]} 58... Bc8 {[%clk 0:00:15.8]} 59. Nd5+ {[%clk 0:00:10.9]} 59... Kb8
{[%clk 0:00:17]} 60. Re4 {[%clk 0:00:12]} 60... Qh2+ {[%clk 0:00:17.8]} 61. Re2
{[%clk 0:00:13.4]} 61... Qh3 {[%clk 0:00:17.4]} 62. Be4 {[%clk 0:00:12.2]} 62...
Be6 {[%clk 0:00:13.9]} 63. Nf4 {[%clk 0:00:11.4]} 63... Qh6 {[%clk 0:00:14.4]}
64. Nxe6 {[%clk 0:00:12]} 64... Qxe6 {[%clk 0:00:16.1]} 65. Bd3 {[%clk
0:00:13.1]} 65... Qf6 {[%clk 0:00:16.4]} 66. Kb3 {[%clk 0:00:10.6]} 66... Qxf3
{[%clk 0:00:16.3]} 67. Rd2 {[%clk 0:00:10.1]} 67... Kc7 {[%clk 0:00:16.5]} 68.
a4 {[%clk 0:00:07.8]} 68... Qe3 {[%clk 0:00:16.5]} 69. Rd1 {[%clk 0:00:07.2]}
69... Kb6 {[%clk 0:00:16.6]} 70. Kb4 {[%clk 0:00:05.7]} 70... Qc5+ {[%clk
0:00:17.8]} 71. Kc3 {[%clk 0:00:07.1]} 71... Ka5 {[%clk 0:00:19.5]} 72. Bc2
{[%clk 0:00:05.4]} 72... Qe3+ {[%clk 0:00:19.3]} 73. Rd3 {[%clk 0:00:06.3]}
73... Qe1+ {[%clk 0:00:20.1]} 74. Kb2 {[%clk 0:00:07.5]} 74... Kb4 {[%clk
0:00:19.8]} 75. Rb3+ {[%clk 0:00:04.4]} 75... Kxc4 {[%clk 0:00:20.2]} 76. Bd3+
{[%clk 0:00:05.8]} 76... Kc5 {[%clk 0:00:20.5]} 77. Bc2 {[%clk 0:00:05.8]} 77...
Qe5+ {[%clk 0:00:20.7]} 78. Kb1 {[%clk 0:00:02.8]} 78... Qf4 {[%clk 0:00:20.1]}
79. a5 {[%clk 0:00:03.6]} 79... Qf1+ {[%clk 0:00:19.6]} 80. Kb2 {[%clk
0:00:04.1]} 80... Qf6+ {[%clk 0:00:20.2]} 81. Kb1 {[%clk 0:00:04.3]} 81... Qf1+
{[%clk 0:00:16.3]} 82. Kb2 {[%clk 0:00:04.3]} 82... Qf6+ {[%clk 0:00:09.7]} 83.
Ka2 {[%clk 0:00:05]} 83... Qf7 {[%clk 0:00:10.6]} 84. b6 {[%clk 0:00:04.1]}
84... axb6 {[%clk 0:00:11.3]} 85. axb6 {[%clk 0:00:06]} 85... Qb7 {[%clk
0:00:10.8]} 86. Kb2 {[%clk 0:00:03.8]} 86... d5 {[%clk 0:00:11.7]} 87. Bd3
{[%clk 0:00:04.9]} 87... Kd4 {[%clk 0:00:12]} 88. Ba6 {[%clk 0:00:03.3]} 88...
Qxa6 {[%clk 0:00:10.5]} 89. b7 {[%clk 0:00:04.8]} 89... Qe2+ {[%clk 0:00:09.7]}
90. Ka3 {[%clk 0:00:05.7]} 90... Qa6+ {[%clk 0:00:09.7]} 91. Kb2 {[%clk
0:00:07.2]} 91... Qe2+ {[%clk 0:00:06.4]} 92. Kb1 {[%clk 0:00:08.7]} 92... Qf1+
{[%clk 0:00:06.2]} 93. Ka2 {[%clk 0:00:07.1]} 93... Qf2+ {[%clk 0:00:07.2]} 94.
Rb2 {[%clk 0:00:08.1]} 94... Qe1 {[%clk 0:00:03.6]} 95. b8=Q {[%clk 0:00:07.3]}
95... Qa5+ {[%clk 0:00:05.5]} 96. Kb1 {[%clk 0:00:08.5]} 96... Qe1+ {[%clk
0:00:06.5]} 97. Kc2 {[%clk 0:00:07]} 97... Qe2+ {[%clk 0:00:06.4]} 98. Kb3
{[%clk 0:00:07.8]} 98... Qd3+ {[%clk 0:00:06.6]} 99. Ka4 {[%clk 0:00:08.8]}
99... Qa6+ {[%clk 0:00:05.6]} 100. Kb4 {[%clk 0:00:09]} 100... Qc4+ {[%clk
0:00:06.2]} 101. Ka5 {[%clk 0:00:10.4]} 101... Qc5+ {[%clk 0:00:03.2]} 102. Ka6
{[%clk 0:00:09.5]} 102... Qa3+ {[%clk 0:00:03.7]} 103. Kb7 {[%clk 0:00:04.2]}
103... Qxb2+ {[%clk 0:00:04.8]} 104. Kc8 {[%clk 0:00:06.1]} 104... Qxb8+ {[%clk
0:00:05.6]} 105. Kxb8 {[%clk 0:00:07.7]} 105... Kc3 {[%clk 0:00:06.8]} 106. Kc7
{[%clk 0:00:03.2]} 106... d4 {[%clk 0:00:08.7]} 107. Kc6 {[%clk 0:00:05.1]}
107... d3 {[%clk 0:00:10.3]} 108. Kb5 {[%clk 0:00:07]} 108... d2 {[%clk
0:00:11.4]} 109. Ka4 {[%clk 0:00:08.5]} 109... d1=Q+ {[%clk 0:00:11.5]} 110. Ka3
{[%clk 0:00:10.1]} 110... Qa1# {[%clk 0:00:12.4]} 0-1

[Event "*** Titled Tuesday Blitz"]
[Site "Chess.com"]
[Date "2018.11.06"]
[Round "10"]
[White "vovachesss"]
[Black "Chessialist"]
[Result "1-0"]
[WhiteElo "2480"]
[BlackElo "2545"]
[TimeControl "180+2"]
[EndTime "15:17:15 PST"]
[Termination "vovachesss won by resignation"]

1. d4 {[%clk 0:03:01.9]} 1... Nf6 {[%clk 0:03:00.6]} 2. Nc3 {[%clk 0:03:02]}
2... d5 {[%clk 0:03:00.7]} 3. Bg5 {[%clk 0:03:03.6]} 3... Bf5 {[%clk 0:03:01.7]}
4. f3 {[%clk 0:03:02.5]} 4... e6 {[%clk 0:03:02.6]} 5. e4 {[%clk 0:03:02.2]}
5... dxe4 {[%clk 0:02:54.1]} 6. fxe4 {[%clk 0:03:03.3]} 6... Bg6 {[%clk
0:02:23.2]} 7. e5 {[%clk 0:03:03.8]} 7... Nc6 {[%clk 0:02:24.3]} 8. exf6 {[%clk
0:03:03.8]} 8... gxf6 {[%clk 0:02:26.2]} 9. Be3 {[%clk 0:03:04.2]} 9... Bb4
{[%clk 0:02:25.4]} 10. Nf3 {[%clk 0:03:02.1]} 10... Qd5 {[%clk 0:02:22.1]} 11.
Qd2 {[%clk 0:03:02.8]} 11... Bxc3 {[%clk 0:02:23]} 12. Qxc3 {[%clk 0:03:00.3]}
12... O-O-O {[%clk 0:02:23.8]} 13. b3 {[%clk 0:02:58.8]} 13... Qe4 {[%clk
0:02:18.6]} 14. O-O-O {[%clk 0:02:56.9]} 14... Ne7 {[%clk 0:02:19.6]} 15. Bf2
{[%clk 0:02:51.6]} 15... Nd5 {[%clk 0:02:20.2]} 16. Qd2 {[%clk 0:02:52.1]} 16...
Nb4 {[%clk 0:02:00.2]} 17. Bd3 {[%clk 0:02:34.7]} 17... Nxd3+ {[%clk 0:01:58.1]}
18. Qxd3 {[%clk 0:02:26.3]} 18... Qc6 {[%clk 0:01:59.1]} 19. Qd2 {[%clk
0:02:27]} 19... Be4 {[%clk 0:01:57.3]} 20. Kb2 {[%clk 0:02:24.5]} 20... Rhg8
{[%clk 0:01:57.7]} 21. Bg3 {[%clk 0:02:24.6]} 21... Bxf3 {[%clk 0:01:58.8]} 22.
gxf3 {[%clk 0:02:25.5]} 22... Qxf3 {[%clk 0:02:00.7]} 23. Rhf1 {[%clk
0:02:26.6]} 23... Qd5 {[%clk 0:01:56.6]} 24. Rxf6 {[%clk 0:02:27.2]} 24... Rd7
{[%clk 0:01:58.2]} 25. Rdf1 {[%clk 0:02:27.4]} 25... Rg7 {[%clk 0:01:55.9]} 26.
Qc3 {[%clk 0:02:22]} 26... h5 {[%clk 0:01:54.7]} 27. Be5 {[%clk 0:02:23]} 27...
b6 {[%clk 0:01:49.8]} 28. Qc4 {[%clk 0:02:12.3]} 28... Qxc4 {[%clk 0:01:35.5]}
29. bxc4 {[%clk 0:02:13.2]} 29... Rh7 {[%clk 0:01:37.4]} 30. h4 {[%clk
0:02:12.1]} 30... Kb7 {[%clk 0:01:38.4]} 31. Kc3 {[%clk 0:02:12.4]} 31... c5
{[%clk 0:01:38.1]} 32. dxc5 {[%clk 0:02:09.8]} 32... bxc5 {[%clk 0:01:39]} 33.
Rb1+ {[%clk 0:02:10.2]} 33... Kc6 {[%clk 0:01:40.1]} 34. Rb8 {[%clk 0:02:11.3]}
34... Rg7 {[%clk 0:01:41.3]} 35. Rc8+ {[%clk 0:02:10.5]} 35... Kb6 {[%clk
0:01:42]} 36. Rf1 {[%clk 0:01:55.3]} 36... Rg2 {[%clk 0:01:24.1]} 37. Rb1+
{[%clk 0:01:55.9]} 37... Ka6 {[%clk 0:01:24.7]} 38. Rc6+ {[%clk 0:01:56.5]}
38... Ka5 {[%clk 0:01:25.9]} 39. Rxc5+ {[%clk 0:01:58.1]} 39... Ka6 {[%clk
0:01:26.9]} 40. Bc7 {[%clk 0:01:58]} 1-0